[Event "Titled Tuesday Blitz January 17 Late 2023"]
[White "Mendez Machado, Andre"]
[Black "Stachanczyk, Jacek"]
[WhiteFideId "6603793"]
[BlackFideId "1116657"]
[WhiteElo "1974"]
[BlackElo "2147"]
[Result "1-0"]
[Round "07"]
[TimeControl "180+2"]
[Date "2023.01.17"]
[WhiteClock "0:00:12"]
[BlackClock "0:00:31"]

1. e4 {[%clk 0:03:00]}  c5 {[%clk 0:02:57]} 2. Nc3 {[%clk 0:02:59]}  Nc6 {[%clk 0:02:56]} 3. Bb5 {[%clk 0:02:59]}  Nd4 {[%clk 0:02:55]} 4. Nf3 {[%clk 0:02:59]}  Nxb5 {[%clk 0:02:54]} 5. Nxb5 {[%clk 0:03:00]}  d6 {[%clk 0:02:54]} 6. d4 {[%clk 0:02:56]}  cxd4 {[%clk 0:02:53]} 7. Qxd4 {[%clk 0:02:57]}  a6 {[%clk 0:02:42]} 8. Nc3 {[%clk 0:02:56]}  Nf6 {[%clk 0:02:39]} 9. Be3 {[%clk 0:02:34]}  e6 {[%clk 0:02:36]} 10. O-O-O {[%clk 0:02:31]}  Qc7 {[%clk 0:02:34]} 11. Rhg1 {[%clk 0:02:04]}  Be7 {[%clk 0:02:28]} 12. g4 {[%clk 0:02:02]}  O-O {[%clk 0:02:28]} 13. g5 {[%clk 0:02:00]}  Nd7 {[%clk 0:02:28]} 14. h4 {[%clk 0:01:42]}  Ne5 {[%clk 0:02:22]} 15. Nxe5 {[%clk 0:01:33]}  dxe5 {[%clk 0:02:23]} 16. Qb6 {[%clk 0:01:26]}  Bd8 {[%clk 0:01:59]} 17. Na4 {[%clk 0:00:41]}  Qxb6 {[%clk 0:00:58]} 18. Bxb6 {[%clk 0:00:41]}  Be7 {[%clk 0:00:53]} 19. Bc7 {[%clk 0:00:37]}  b5 {[%clk 0:00:51]} 20. Nc3 {[%clk 0:00:24]}  Bc5 {[%clk 0:00:50]} 21. Rgf1 {[%clk 0:00:17]}  Bb7 {[%clk 0:00:47]} 22. Bxe5 {[%clk 0:00:16]}  b4 {[%clk 0:00:47]} 23. Na4 {[%clk 0:00:14]}  Ba7 {[%clk 0:00:46]} 24. f3 {[%clk 0:00:14]}  f6 {[%clk 0:00:43]} 25. gxf6 {[%clk 0:00:14]}  gxf6 {[%clk 0:00:43]} 26. Bd6 {[%clk 0:00:14]}  Rf7 {[%clk 0:00:39]} 27. Nc5 {[%clk 0:00:13]}  Bxc5 {[%clk 0:00:34]} 28. Bxc5 {[%clk 0:00:14]}  Rc8 {[%clk 0:00:34]} 29. Rg1+ {[%clk 0:00:14]}  Rg7 {[%clk 0:00:33]} 30. Bxb4 {[%clk 0:00:15]}  f5 {[%clk 0:00:30]} 31. Bc3 {[%clk 0:00:14]}  Rg6 {[%clk 0:00:30]} 32. h5 {[%clk 0:00:14]}  Rxg1 {[%clk 0:00:29]} 33. Rxg1+ {[%clk 0:00:14]}  Kf8 {[%clk 0:00:29]} 34. Rg7 {[%clk 0:00:14]}  Ba8 {[%clk 0:00:30]} 35. Rxh7 {[%clk 0:00:14]}  Rc4 {[%clk 0:00:28]} 36. Rh8+ {[%clk 0:00:14]}  Kf7 {[%clk 0:00:28]} 37. Rxa8 {[%clk 0:00:14]}  fxe4 {[%clk 0:00:28]} 38. fxe4 {[%clk 0:00:15]}  Rxe4 {[%clk 0:00:29]} 39. Rxa6 {[%clk 0:00:15]}  Rh4 {[%clk 0:00:29]} 40. Ra7+ {[%clk 0:00:14]}  Ke8 {[%clk 0:00:29]} 41. Rh7 {[%clk 0:00:14]}  Kf8 {[%clk 0:00:29]} 42. Rh8+ {[%clk 0:00:13]}  Kf7 {[%clk 0:00:29]} 43. h6 {[%clk 0:00:14]}  e5 {[%clk 0:00:29]} 44. Bxe5 {[%clk 0:00:13]}  Ke6 {[%clk 0:00:29]} 45. Bc3 {[%clk 0:00:13]}  Kf5 {[%clk 0:00:30]} 46. b3 {[%clk 0:00:13]}  Ke4 {[%clk 0:00:30]} 47. Kb2 {[%clk 0:00:13]}  Kf5 {[%clk 0:00:30]} 48. h7 {[%clk 0:00:13]}  Kg6 {[%clk 0:00:31]} 49. Rg8+ {[%clk 0:00:12]} 1-0


[Site "https://www.chess.com"]

[Event "Titled Tuesday Blitz January 17 Late 2023"]
[White "Kalajzic, Ivan"]
[Black "Torres Dominguez, David"]
[WhiteFideId "14506378"]
[BlackFideId "2220857"]
[WhiteElo "2062"]
[BlackElo "1994"]
[Result "0-1"]
[Round "07"]
[TimeControl "180+2"]
[Date "2023.01.17"]
[WhiteClock "0:00:14"]
[BlackClock "0:00:32"]

1. b3 {[%clk 0:02:52]}  Nf6 {[%clk 0:02:59]} 2. Bb2 {[%clk 0:02:52]}  g6 {[%clk 0:02:59]} 3. Bxf6 {[%clk 0:02:52]}  exf6 {[%clk 0:02:58]} 4. c4 {[%clk 0:02:53]}  Bg7 {[%clk 0:02:59]} 5. Nc3 {[%clk 0:02:53]}  O-O {[%clk 0:02:59]} 6. g3 {[%clk 0:02:54]}  f5 {[%clk 0:02:59]} 7. Bg2 {[%clk 0:02:54]}  Nc6 {[%clk 0:02:56]} 8. e3 {[%clk 0:02:54]}  d6 {[%clk 0:02:47]} 9. Nge2 {[%clk 0:02:54]}  Qd7 {[%clk 0:02:46]} 10. O-O {[%clk 0:02:52]}  b6 {[%clk 0:02:46]} 11. b4 {[%clk 0:02:50]}  Bb7 {[%clk 0:02:45]} 12. d4 {[%clk 0:02:41]}  Rfb8 {[%clk 0:02:41]} 13. Nd5 {[%clk 0:02:36]}  Ne7 {[%clk 0:02:37]} 14. Nef4 {[%clk 0:02:29]}  c6 {[%clk 0:02:29]} 15. Nxe7+ {[%clk 0:02:24]}  Qxe7 {[%clk 0:02:29]} 16. a4 {[%clk 0:02:18]}  a5 {[%clk 0:02:25]} 17. b5 {[%clk 0:02:18]}  cxb5 {[%clk 0:02:23]} 18. axb5 {[%clk 0:01:55]}  Bxg2 {[%clk 0:02:18]} 19. Kxg2 {[%clk 0:01:55]}  Rc8 {[%clk 0:02:16]} 20. Nd5 {[%clk 0:01:52]}  Qd7 {[%clk 0:02:09]} 21. Qf3 {[%clk 0:01:45]}  Rab8 {[%clk 0:02:06]} 22. Rfc1 {[%clk 0:01:44]}  h5 {[%clk 0:01:59]} 23. h4 {[%clk 0:01:44]}  Qe6 {[%clk 0:01:46]} 24. Rc2 {[%clk 0:01:39]}  Kh8 {[%clk 0:01:45]} 25. Rac1 {[%clk 0:01:39]}  Qd7 {[%clk 0:01:40]} 26. Nf4 {[%clk 0:01:30]}  Rb7 {[%clk 0:01:36]} 27. Qd5 {[%clk 0:01:29]}  Rbc7 {[%clk 0:01:33]} 28. Nd3 {[%clk 0:01:29]}  Qe6 {[%clk 0:01:30]} 29. Nf4 {[%clk 0:01:25]}  Qe7 {[%clk 0:01:18]} 30. Kf3 {[%clk 0:01:25]}  Bh6 {[%clk 0:01:18]} 31. Nd3 {[%clk 0:01:22]}  Re8 {[%clk 0:01:12]} 32. c5 {[%clk 0:01:14]}  Qe4+ {[%clk 0:01:10]} 33. Qxe4 {[%clk 0:01:06]}  fxe4+ {[%clk 0:01:10]} 34. Ke2 {[%clk 0:01:07]}  exd3+ {[%clk 0:01:10]} 35. Kxd3 {[%clk 0:01:08]}  dxc5 {[%clk 0:01:10]} 36. dxc5 {[%clk 0:01:06]}  Rd8+ {[%clk 0:01:09]} 37. Ke4 {[%clk 0:01:02]}  Rxc5 {[%clk 0:01:05]} 38. Rxc5 {[%clk 0:01:01]}  bxc5 {[%clk 0:01:06]} 39. Rxc5 {[%clk 0:01:02]}  a4 {[%clk 0:01:06]} 40. b6 {[%clk 0:00:55]}  Rb8 {[%clk 0:01:06]} 41. Ra5 {[%clk 0:00:53]}  Rxb6 {[%clk 0:01:05]} 42. Rxa4 {[%clk 0:00:54]}  Bf8 {[%clk 0:01:05]} 43. Ra7 {[%clk 0:00:51]}  Kg7 {[%clk 0:01:03]} 44. Ra4 {[%clk 0:00:48]}  Rb4+ {[%clk 0:01:03]} 45. Rxb4 {[%clk 0:00:46]}  Bxb4 {[%clk 0:01:03]} 46. f3 {[%clk 0:00:40]}  Kf6 {[%clk 0:01:01]} 47. g4 {[%clk 0:00:28]}  Be1 {[%clk 0:01:01]} 48. gxh5 {[%clk 0:00:24]}  gxh5 {[%clk 0:01:01]} 49. f4 {[%clk 0:00:21]}  Bxh4 {[%clk 0:01:00]} 50. Kf3 {[%clk 0:00:21]}  Ke6 {[%clk 0:00:46]} 51. e4 {[%clk 0:00:21]}  Bf6 {[%clk 0:00:46]} 52. Kg3 {[%clk 0:00:18]}  Kd6 {[%clk 0:00:44]} 53. Kf3 {[%clk 0:00:15]}  Kc5 {[%clk 0:00:43]} 54. e5 {[%clk 0:00:16]}  Bxe5 {[%clk 0:00:38]} 55. Ke4 {[%clk 0:00:16]}  Bf6 {[%clk 0:00:33]} 56. Kf5 {[%clk 0:00:16]}  Be7 {[%clk 0:00:33]} 57. Ke4 {[%clk 0:00:15]}  Kd6 {[%clk 0:00:33]} 58. f5 {[%clk 0:00:15]}  Bf6 {[%clk 0:00:32]} 59. Kf4 {[%clk 0:00:16]}  Kd5 {[%clk 0:00:32]} 60. Kf3 {[%clk 0:00:14]}  Ke5 {[%clk 0:00:32]} 0-1


[Site "https://www.chess.com"]

[Event "Titled Tuesday Blitz January 17 Late 2023"]
[White "Castellanos Hernandez, Emilio Au"]
[Black "Ovezdurdyyeva, Jemal"]
[WhiteFideId "5114179"]
[BlackFideId "14001888"]
[WhiteElo "1964"]
[BlackElo "2078"]
[Result "1-0"]
[Round "07"]
[TimeControl "180+2"]
[Date "2023.01.17"]
[WhiteClock "0:00:12"]
[BlackClock "0:00:02"]

1. d4 {[%clk 0:03:00]}  Nf6 {[%clk 0:02:58]} 2. Bf4 {[%clk 0:03:00]}  d5 {[%clk 0:02:49]} 3. e3 {[%clk 0:03:00]}  e6 {[%clk 0:02:48]} 4. Nf3 {[%clk 0:02:59]}  Ne4 {[%clk 0:02:48]} 5. Nbd2 {[%clk 0:02:59]}  f5 {[%clk 0:02:47]} 6. Ne5 {[%clk 0:02:59]}  g6 {[%clk 0:02:39]} 7. h4 {[%clk 0:02:58]}  Nd7 {[%clk 0:02:37]} 8. Nxe4 {[%clk 0:02:41]}  fxe4 {[%clk 0:02:20]} 9. h5 {[%clk 0:02:40]}  g5 {[%clk 0:02:20]} 10. h6 {[%clk 0:02:39]}  Nxe5 {[%clk 0:02:01]} 11. Bxe5 {[%clk 0:02:37]}  Rg8 {[%clk 0:02:01]} 12. Be2 {[%clk 0:02:27]}  Qe7 {[%clk 0:01:48]} 13. Bh5+ {[%clk 0:02:27]}  Kd8 {[%clk 0:01:48]} 14. a3 {[%clk 0:02:23]}  Bxh6 {[%clk 0:01:47]} 15. c4 {[%clk 0:02:08]}  Bg7 {[%clk 0:01:41]} 16. Bg3 {[%clk 0:02:05]}  Bd7 {[%clk 0:01:34]} 17. Qc2 {[%clk 0:02:03]}  Bc6 {[%clk 0:01:30]} 18. O-O-O {[%clk 0:01:51]}  Bf6 {[%clk 0:01:14]} 19. c5 {[%clk 0:01:43]}  Kd7 {[%clk 0:01:12]} 20. Bg4 {[%clk 0:01:38]}  Raf8 {[%clk 0:01:08]} 21. Qc3 {[%clk 0:01:30]}  Kc8 {[%clk 0:01:07]} 22. Qa5 {[%clk 0:01:20]}  Kb8 {[%clk 0:01:06]} 23. b4 {[%clk 0:01:12]}  e5 {[%clk 0:00:57]} 24. b5 {[%clk 0:01:05]}  Be8 {[%clk 0:00:54]} 25. dxe5 {[%clk 0:01:04]}  Bxe5 {[%clk 0:00:52]} 26. Rxd5 {[%clk 0:00:53]}  Bxg3 {[%clk 0:00:47]} 27. fxg3 {[%clk 0:00:37]}  Bf7 {[%clk 0:00:41]} 28. Rxh7 {[%clk 0:00:21]}  Rh8 {[%clk 0:00:33]} 29. Rxh8 {[%clk 0:00:13]}  Rxh8 {[%clk 0:00:32]} 30. Rd1 {[%clk 0:00:11]}  Qxc5+ {[%clk 0:00:31]} 31. Kb1 {[%clk 0:00:11]}  Bc4 {[%clk 0:00:30]} 32. Qb4 {[%clk 0:00:11]}  Bd3+ {[%clk 0:00:28]} 33. Kb2 {[%clk 0:00:11]}  Qe5+ {[%clk 0:00:28]} 34. Ka2 {[%clk 0:00:09]}  Qxg3 {[%clk 0:00:26]} 35. Bf5 {[%clk 0:00:04]}  Qxg2+ {[%clk 0:00:25]} 36. Qb2 {[%clk 0:00:04]}  Qxb2+ {[%clk 0:00:24]} 37. Kxb2 {[%clk 0:00:05]}  Rf8 {[%clk 0:00:23]} 38. Bg6 {[%clk 0:00:04]}  c5 {[%clk 0:00:21]} 39. bxc6 {[%clk 0:00:04]}  bxc6 {[%clk 0:00:21]} 40. Kc3 {[%clk 0:00:05]}  Rf3 {[%clk 0:00:20]} 41. Kd4 {[%clk 0:00:04]}  Rh3 {[%clk 0:00:17]} 42. Rg1 {[%clk 0:00:05]}  c5+ {[%clk 0:00:12]} 43. Kxc5 {[%clk 0:00:05]}  Rxe3 {[%clk 0:00:13]} 44. Rxg5 {[%clk 0:00:06]}  Bb1 {[%clk 0:00:13]} 45. Kd4 {[%clk 0:00:06]}  Rxa3 {[%clk 0:00:13]} 46. Rb5+ {[%clk 0:00:06]}  Kc7 {[%clk 0:00:11]} 47. Rxb1 {[%clk 0:00:07]}  Ra4+ {[%clk 0:00:12]} 48. Ke3 {[%clk 0:00:07]}  Ra3+ {[%clk 0:00:11]} 49. Kf4 {[%clk 0:00:08]}  Ra4 {[%clk 0:00:11]} 50. Bxe4 {[%clk 0:00:08]}  Kd6 {[%clk 0:00:11]} 51. Ke3 {[%clk 0:00:08]}  Ra3+ {[%clk 0:00:12]} 52. Bd3 {[%clk 0:00:08]}  Kd5 {[%clk 0:00:11]} 53. Rb5+ {[%clk 0:00:09]}  Kc6 {[%clk 0:00:11]} 54. Rh5 {[%clk 0:00:10]}  a5 {[%clk 0:00:11]} 55. Kd4 {[%clk 0:00:10]}  Ra1 {[%clk 0:00:11]} 56. Rh6+ {[%clk 0:00:11]}  Kc7 {[%clk 0:00:10]} 57. Kc5 {[%clk 0:00:11]}  a4 {[%clk 0:00:09]} 58. Bc4 {[%clk 0:00:12]}  a3 {[%clk 0:00:08]} 59. Rh7+ {[%clk 0:00:13]}  Kd8 {[%clk 0:00:07]} 60. Kd6 {[%clk 0:00:13]}  Kc8 {[%clk 0:00:07]} 61. Bd5 {[%clk 0:00:13]}  Kb8 {[%clk 0:00:06]} 62. Rh8+ {[%clk 0:00:13]}  Ka7 {[%clk 0:00:06]} 63. Kc7 {[%clk 0:00:13]}  Ka6 {[%clk 0:00:02]} 64. Bc6 {[%clk 0:00:12]}  Ka5 {[%clk 0:00:03]} 65. Rh4 {[%clk 0:00:12]}  a2 {[%clk 0:00:02]} 66. Ra4# {[%clk 0:00:12]} 1-0


[Site "https://www.chess.com"]

[Event "Titled Tuesday Blitz January 17 Late 2023"]
[White "Vifleemskaia, Svetlana"]
[Black "Cepo, Toni"]
[WhiteFideId "4129490"]
[BlackFideId "4675916"]
[WhiteElo "1971"]
[BlackElo "2145"]
[Result "1-0"]
[Round "07"]
[TimeControl "180+2"]
[Date "2023.01.17"]
[WhiteClock "0:00:48"]
[BlackClock "0:00:11"]

1. d4 {[%clk 0:03:00]}  Nf6 {[%clk 0:02:57]} 2. c4 {[%clk 0:02:59]}  e6 {[%clk 0:02:55]} 3. Nc3 {[%clk 0:02:59]}  Bb4 {[%clk 0:02:53]} 4. e3 {[%clk 0:02:58]}  d5 {[%clk 0:02:51]} 5. Ne2 {[%clk 0:02:59]}  O-O {[%clk 0:02:50]} 6. a3 {[%clk 0:02:59]}  Be7 {[%clk 0:02:47]} 7. cxd5 {[%clk 0:02:56]}  exd5 {[%clk 0:02:46]} 8. g3 {[%clk 0:02:55]}  Bf5 {[%clk 0:02:43]} 9. Bg2 {[%clk 0:02:54]}  c6 {[%clk 0:02:43]} 10. O-O {[%clk 0:02:54]}  Nbd7 {[%clk 0:02:42]} 11. f3 {[%clk 0:02:54]}  Bg6 {[%clk 0:02:40]} 12. e4 {[%clk 0:02:52]}  dxe4 {[%clk 0:02:37]} 13. fxe4 {[%clk 0:02:53]}  Nb6 {[%clk 0:02:35]} 14. Qb3 {[%clk 0:02:37]}  Qd7 {[%clk 0:02:25]} 15. h3 {[%clk 0:02:26]}  Rad8 {[%clk 0:02:22]} 16. Be3 {[%clk 0:02:25]}  Rfe8 {[%clk 0:02:04]} 17. Rad1 {[%clk 0:02:21]}  Bd6 {[%clk 0:02:03]} 18. e5 {[%clk 0:02:20]}  Bb8 {[%clk 0:01:59]} 19. Nf4 {[%clk 0:02:15]}  Nfd5 {[%clk 0:01:55]} 20. Ncxd5 {[%clk 0:02:11]}  Nxd5 {[%clk 0:01:53]} 21. Nxd5 {[%clk 0:02:05]}  cxd5 {[%clk 0:01:53]} 22. Bg5 {[%clk 0:01:57]}  Rc8 {[%clk 0:00:53]} 23. Qxd5 {[%clk 0:01:54]}  Qa4 {[%clk 0:00:52]} 24. Rd2 {[%clk 0:01:33]}  h6 {[%clk 0:00:48]} 25. Be3 {[%clk 0:01:23]}  b6 {[%clk 0:00:31]} 26. Rdf2 {[%clk 0:01:14]}  Red8 {[%clk 0:00:23]} 27. Qf3 {[%clk 0:01:07]}  Rc2 {[%clk 0:00:19]} 28. Qg4 {[%clk 0:01:00]}  Rxf2 {[%clk 0:00:17]} 29. Rxf2 {[%clk 0:01:00]}  Qb3 {[%clk 0:00:17]} 30. Qf3 {[%clk 0:00:52]}  Rf8 {[%clk 0:00:12]} 31. Kh2 {[%clk 0:00:52]}  f6 {[%clk 0:00:12]} 32. Bf4 {[%clk 0:00:49]}  fxe5 {[%clk 0:00:11]} 33. Qxb3+ {[%clk 0:00:48]} 1-0


[Site "https://www.chess.com"]

[Event "Titled Tuesday Blitz January 17 Late 2023"]
[White "Michalski, Olaf"]
[Black "rikchessmx"]
[WhiteFideId "1106740"]
[WhiteElo "2273"]
[BlackElo "2289"]
[Result "0-1"]
[Round "07"]
[TimeControl "180+2"]
[Date "2023.01.17"]
[WhiteClock "0:00:01"]
[BlackClock "0:00:49"]

1. d4 {[%clk 0:03:00]}  e6 {[%clk 0:02:58]} 2. c4 {[%clk 0:02:56]}  Nf6 {[%clk 0:02:57]} 3. Nf3 {[%clk 0:02:56]}  c5 {[%clk 0:02:57]} 4. d5 {[%clk 0:02:52]}  b5 {[%clk 0:02:57]} 5. Nc3 {[%clk 0:02:46]}  b4 {[%clk 0:02:54]} 6. Nb1 {[%clk 0:02:45]}  Bb7 {[%clk 0:02:54]} 7. dxe6 {[%clk 0:02:40]}  fxe6 {[%clk 0:02:53]} 8. e3 {[%clk 0:02:36]}  Be7 {[%clk 0:02:52]} 9. b3 {[%clk 0:02:36]}  O-O {[%clk 0:02:52]} 10. Bb2 {[%clk 0:02:36]}  a5 {[%clk 0:02:43]} 11. a4 {[%clk 0:02:29]}  bxa3 {[%clk 0:02:41]} 12. Nxa3 {[%clk 0:02:25]}  Nc6 {[%clk 0:02:41]} 13. Be2 {[%clk 0:02:23]}  Nb4 {[%clk 0:02:40]} 14. O-O {[%clk 0:02:21]}  Ng4 {[%clk 0:02:30]} 15. h3 {[%clk 0:02:12]}  Nh6 {[%clk 0:02:29]} 16. Ne5 {[%clk 0:01:55]}  d6 {[%clk 0:02:20]} 17. Bf3 {[%clk 0:01:55]}  Bxf3 {[%clk 0:02:16]} 18. Nxf3 {[%clk 0:01:54]}  e5 {[%clk 0:02:16]} 19. Nb5 {[%clk 0:01:32]}  Qb6 {[%clk 0:02:08]} 20. e4 {[%clk 0:01:12]}  Rf4 {[%clk 0:02:02]} 21. Bc1 {[%clk 0:01:02]}  Rxe4 {[%clk 0:01:56]} 22. Bxh6 {[%clk 0:01:02]}  gxh6 {[%clk 0:01:55]} 23. Nd2 {[%clk 0:00:45]}  Rf4 {[%clk 0:01:52]} 24. g3 {[%clk 0:00:44]}  Rf6 {[%clk 0:01:42]} 25. Ne4 {[%clk 0:00:38]}  Rg6 {[%clk 0:01:42]} 26. h4 {[%clk 0:00:31]}  Qc6 {[%clk 0:01:23]} 27. h5 {[%clk 0:00:25]}  Qxe4 {[%clk 0:01:14]} 28. hxg6 {[%clk 0:00:23]}  Qxg6 {[%clk 0:01:10]} 29. Nc7 {[%clk 0:00:17]}  Rf8 {[%clk 0:01:05]} 30. Rxa5 {[%clk 0:00:16]}  h5 {[%clk 0:01:04]} 31. Nd5 {[%clk 0:00:16]}  Bd8 {[%clk 0:01:03]} 32. Nxb4 {[%clk 0:00:14]}  Bxa5 {[%clk 0:00:59]} 33. Nc6 {[%clk 0:00:12]}  Bd8 {[%clk 0:00:57]} 34. Qd5+ {[%clk 0:00:11]}  Qf7 {[%clk 0:00:57]} 35. Nxd8 {[%clk 0:00:08]}  Qxd5 {[%clk 0:00:55]} 36. cxd5 {[%clk 0:00:08]}  Rxd8 {[%clk 0:00:55]} 37. Ra1 {[%clk 0:00:08]}  Rb8 {[%clk 0:00:52]} 38. Ra6 {[%clk 0:00:07]}  Rxb3 {[%clk 0:00:51]} 39. Rxd6 {[%clk 0:00:08]}  Kf7 {[%clk 0:00:50]} 40. Re6 {[%clk 0:00:07]}  Rd3 {[%clk 0:00:50]} 41. Rxe5 {[%clk 0:00:07]}  c4 {[%clk 0:00:50]} 42. Rxh5 {[%clk 0:00:03]}  Kg6 {[%clk 0:00:50]} 43. Re5 {[%clk 0:00:02]}  c3 {[%clk 0:00:50]} 44. Re6+ {[%clk 0:00:01]}  Kf5 {[%clk 0:00:49]} 45. Rc6 {[%clk 0:00:01]}  Ke5 {[%clk 0:00:49]} 46. d6 {[%clk 0:00:01]}  Ke6 {[%clk 0:00:49]} 47. Kf1 {[%clk 0:00:01]}  Kd7 {[%clk 0:00:49]} 0-1


[Site "https://www.chess.com"]

[Event "Titled Tuesday Blitz January 17 Late 2023"]
[White "Herbst, Richard"]
[Black "Souza, Gustavo Horokoski De"]
[WhiteFideId "2041251"]
[BlackFideId "2146584"]
[WhiteElo "2120"]
[BlackElo "1943"]
[Result "1-0"]
[Round "07"]
[TimeControl "180+2"]
[Date "2023.01.17"]
[WhiteClock "0:01:09"]
[BlackClock "0:00:08"]

1. e4 {[%clk 0:02:56]}  e6 {[%clk 0:02:59]} 2. d4 {[%clk 0:02:56]}  d5 {[%clk 0:02:59]} 3. e5 {[%clk 0:02:56]}  c5 {[%clk 0:02:58]} 4. c3 {[%clk 0:02:57]}  Nc6 {[%clk 0:02:58]} 5. Nf3 {[%clk 0:02:57]}  Qb6 {[%clk 0:02:59]} 6. Bd3 {[%clk 0:02:57]}  Nge7 {[%clk 0:02:59]} 7. Na3 {[%clk 0:02:53]}  cxd4 {[%clk 0:02:57]} 8. O-O {[%clk 0:02:45]}  dxc3 {[%clk 0:02:50]} 9. bxc3 {[%clk 0:02:45]}  a6 {[%clk 0:02:47]} 10. Rb1 {[%clk 0:02:39]}  Qc7 {[%clk 0:02:45]} 11. Re1 {[%clk 0:02:39]}  Ng6 {[%clk 0:02:44]} 12. Qe2 {[%clk 0:02:39]}  Bd7 {[%clk 0:02:16]} 13. h4 {[%clk 0:02:37]}  Nf4 {[%clk 0:02:11]} 14. Bxf4 {[%clk 0:02:35]}  Bxa3 {[%clk 0:02:11]} 15. c4 {[%clk 0:02:27]}  dxc4 {[%clk 0:02:03]} 16. Bxc4 {[%clk 0:02:27]}  b5 {[%clk 0:01:59]} 17. Bd3 {[%clk 0:02:25]}  Bc5 {[%clk 0:01:48]} 18. Rbc1 {[%clk 0:02:20]}  Qa7 {[%clk 0:01:48]} 19. Ng5 {[%clk 0:02:08]}  h6 {[%clk 0:01:25]} 20. Ne4 {[%clk 0:02:07]}  Be7 {[%clk 0:01:19]} 21. Qg4 {[%clk 0:02:07]}  O-O {[%clk 0:00:56]} 22. Bxh6 {[%clk 0:01:52]}  g6 {[%clk 0:00:55]} 23. Nf6+ {[%clk 0:01:37]}  Kh8 {[%clk 0:00:40]} 24. Qg5 {[%clk 0:01:22]}  Qd4 {[%clk 0:00:20]} 25. Bxf8 {[%clk 0:01:13]}  Bxf8 {[%clk 0:00:19]} 26. Bxg6 {[%clk 0:01:09]}  fxg6 {[%clk 0:00:10]} 27. Qxg6 {[%clk 0:01:09]}  Qxh4 {[%clk 0:00:08]} 28. Qg8# {[%clk 0:01:09]} 1-0


[Site "https://www.chess.com"]

[Event "Titled Tuesday Blitz January 17 Late 2023"]
[White "Cueto, Jonny"]
[Black "Coe, William"]
[WhiteFideId "3300145"]
[BlackFideId "30913624"]
[WhiteElo "2122"]
[BlackElo "2078"]
[Result "1-0"]
[Round "07"]
[TimeControl "180+2"]
[Date "2023.01.17"]
[WhiteClock "0:00:04"]
[BlackClock "0:00:01"]

1. d4 {[%clk 0:03:00]}  f5 {[%clk 0:02:57]} 2. Bf4 {[%clk 0:03:00]}  Nf6 {[%clk 0:02:57]} 3. e3 {[%clk 0:03:00]}  e6 {[%clk 0:02:58]} 4. Nf3 {[%clk 0:03:01]}  d5 {[%clk 0:02:58]} 5. Nbd2 {[%clk 0:03:01]}  Bd6 {[%clk 0:02:58]} 6. Ne5 {[%clk 0:03:01]}  O-O {[%clk 0:02:58]} 7. Bd3 {[%clk 0:03:01]}  Ne4 {[%clk 0:02:57]} 8. Qe2 {[%clk 0:03:00]}  Nd7 {[%clk 0:02:56]} 9. Ndf3 {[%clk 0:02:48]}  Nxe5 {[%clk 0:02:51]} 10. Nxe5 {[%clk 0:02:49]}  Bxe5 {[%clk 0:02:46]} 11. Bxe5 {[%clk 0:02:50]}  c5 {[%clk 0:02:15]} 12. f3 {[%clk 0:02:46]}  Nf6 {[%clk 0:02:14]} 13. c3 {[%clk 0:02:47]}  cxd4 {[%clk 0:02:08]} 14. exd4 {[%clk 0:02:47]}  a6 {[%clk 0:02:06]} 15. g4 {[%clk 0:02:38]}  b5 {[%clk 0:02:02]} 16. gxf5 {[%clk 0:02:36]}  exf5 {[%clk 0:02:02]} 17. O-O {[%clk 0:02:19]}  Qe8 {[%clk 0:01:56]} 18. Kh1 {[%clk 0:01:59]}  Qh5 {[%clk 0:01:51]} 19. Rg1 {[%clk 0:01:56]}  Ra7 {[%clk 0:01:46]} 20. Rg3 {[%clk 0:01:27]}  Re7 {[%clk 0:01:34]} 21. Rag1 {[%clk 0:01:27]}  Rff7 {[%clk 0:01:19]} 22. Qg2 {[%clk 0:01:12]}  Qh6 {[%clk 0:01:09]} 23. Rg5 {[%clk 0:00:58]}  Ne8 {[%clk 0:00:40]} 24. f4 {[%clk 0:00:36]}  Be6 {[%clk 0:00:34]} 25. Qg3 {[%clk 0:00:32]}  Nf6 {[%clk 0:00:26]} 26. Bxf6 {[%clk 0:00:16]}  Rxf6 {[%clk 0:00:23]} 27. Re1 {[%clk 0:00:10]}  Kf8 {[%clk 0:00:11]} 28. Bf1 {[%clk 0:00:10]}  g6 {[%clk 0:00:10]} 29. Bg2 {[%clk 0:00:11]}  Bf7 {[%clk 0:00:06]} 30. Rxe7 {[%clk 0:00:10]}  Kxe7 {[%clk 0:00:07]} 31. Qf2 {[%clk 0:00:04]}  Qf8 {[%clk 0:00:01]} 32. Rg3 {[%clk 0:00:04]} 1-0


[Site "https://www.chess.com"]